Cogmind - Beta 10.2 @@@ ROGUE MODE // 2021.03.20 @ 15:32:53 Player: ChromeKnight Result: Self-destructed Performance ------------- Evolutions (4) 2000 Regions Visited (13) 2600 Robots Destroyed (77) 385 Value Destroyed (4979) 4979 Prototype IDs (28) 560 Alien Tech Used (0) 0 Bonus (5586) 5586 TOTAL SCORE: 16110 Bonus ------- High Alert Combat Kills 1000 Follower Combat Kills 1519 Entered Garrisons 800 Used RIF Installer 2000 Aligned with FarCom 300 Friendly Fire -33 Cogmind --------- Core Integrity 413/850 Matter 300/300 Energy 100/100 System Corruption 3% Temperature Cool (0) Movement Core (50) Location -6/Factory Parts ------- > --- POWER (1) -------- (None) > --- PROPULSION (2) --- (None) > --- UTILITY (10) ----- Relay Coupler [Sentry] (25) > --- WEAPON (2) ------- Spear > --- INVENTORY (4) ---- Relay Coupler [NC] (42) Relay Coupler [ARC] (11) Relay Coupler [Swarmer] (39) Datajack Peak State ------------ > --- POWER ------------ Light Angular Momentum Engine > --- PROPULSION ------- Armored Treads Armored Treads > --- UTILITY ---------- Army-in-a-Box > --- WEAPON ----------- Greatsword > --- INVENTORY -------- Lightning Gun Greatsword [Rating: 74] Favorites ----------- Power Light Ion Engine Engine Light Ion Engine Power Core Light Nuclear Core Propulsion Light Treads Treads Light Treads Leg Improved Titanium Leg Wheel Wheel Hover Unit Gravmag System Utility Improved Heat Sink Device Improved Heat Sink Storage Large Storage Unit Processor Advanced Targeting Computer Hackware Relay Coupler [Sentry] Protection Improved Medium Armor Plating Weapon Improved Remote Datajack Energy Gun Medium Laser Energy Cannon Plasma Cannon Ballistic Gun Gauss Rifle Launcher Precision Grenade Launcher Special Weapon Improved Remote Datajack Slashing Weapon Greatsword Piercing Weapon Spear Build | -11 -10 -10 -10 -9 -8 -8 -8 -8 -7 -7 -7 -7 -6 ------- Run | Scr Mat Min Exi Min Mat Gar Mat Gar Fac Gar Fac Gar Fac Slots Evolved 8 | . . . . . 4 . . . 2 . . . 2 Power . | . . . . . . . . . . . . . . Propulsion . | . . . . . . . . . . . . . . Utility 8 | . . . . . 4 . . . 2 . . . 2 Weapon . | . . . . . . . . . . . . . . Parts Attached 174 | 6 2 1 1 14 21 20 9 22 8 33 2 17 18 Power 25 | 1 . . 1 2 2 1 2 4 1 4 . 3 4 Engine 12 | 1 . . . 2 1 1 1 . 1 1 . 1 3 Core 13 | . . . 1 . 1 . 1 4 . 3 . 2 1 Reactor . | . . . . . . . . . . . . . . Propulsion 44 | 2 . . . 4 7 3 5 5 2 5 1 5 5 Treads 15 | . . . . . 6 . 3 . . 3 . 3 . Leg 23 | . . . . 4 1 3 2 5 2 2 1 2 1 Wheel 2 | 2 . . . . . . . . . . . . . Hover 4 | . . . . . . . . . . . . . 4 Flight . | . . . . . . . . . . . . . . Utility 62 | 1 1 1 . 1 7 15 2 10 3 13 1 4 3 Device 12 | . . 1 . 1 4 1 1 2 . 1 . . 1 Storage 4 | 1 1 . . . . 1 . . . . 1 . . Processor 1 | . . . . . 1 . . . . . . . . Hackware 28 | . . . . . . 3 . 7 1 11 . 4 2 Protection 17 | . . . . . 2 10 1 1 2 1 . . . Artifact . | . . . . . . . . . . . . . . Weapon 43 | 2 1 . . 7 5 1 . 3 2 11 . 5 6 Energy Gun 20 | 2 1 . . 6 4 . . 2 . 4 . 1 . Energy Cannon 3 | . . . . . . . . . . 2 . 1 . Ballistic Gun 3 | . . . . . . . . . . 1 . . 2 Ballistic Cannon . | . . . . . . . . . . . . . . Launcher 5 | . . . . 1 . . . . 2 2 . . . Special Weapon 5 | . . . . . . . . . . 2 . 2 1 Impact Weapon . | . . . . . . . . . . . . . . Slashing Weapon 5 | . . . . . 1 1 . 1 . . . 1 1 Piercing Weapon 2 | . . . . . . . . . . . . . 2 Special Melee Weapon . | . . . . . . . . . . . . . . Unidentified Prototypes 2 | . . . . . 1 . . . 1 . . . . Parts Lost 59 | . . . . 10 1 3 . 8 4 11 . 8 14 Power 6 | . . . . 1 . . . 1 1 1 . 1 1 Propulsion 11 | . . . . 4 . 1 . 1 . 1 . 1 3 Utility 24 | . . . . . . 1 . 4 1 6 . 3 9 Weapon 18 | . . . . 5 1 1 . 2 2 3 . 3 1 Highest Loss Streak 11 | . . . . 6 1 3 . 4 4 8 . 5 11 Average Slot Usage (%) 80 | . 86 89 99 58 83 68 69 62 98 89 94 94 80 Engine 5 | . 14 14 7 3 6 9 6 3 2 3 7 5 5 Core 2 | . . . 6 2 2 . 2 5 4 2 . 1 . Treads 6 | . . . . . 12 1 11 7 . 11 9 10 . Leg 6 | . . . . 5 3 16 6 9 15 3 4 3 1 Wheel 1 | . 28 28 28 . . . . . . . . . . Hover 1 | . . . . . . . . . . . . . 10 Device 8 | . . 3 14 14 18 2 4 4 15 9 7 7 7 Storage 5 | . 15 14 14 14 9 6 4 . . . 1 7 5 Hackware 22 | . . . . . . 6 14 20 30 37 46 41 34 Protection 5 | . . . . . 7 18 9 1 14 4 . . . Energy Gun 5 | . 28 28 28 18 16 . . 2 . 3 . . . Energy Cannon 1 | . . . . . . . . . . 2 7 6 . Special Weapon 2 | . . . . . . . . . . 6 7 6 2 Slashing Weapon 2 | . . . . . . 8 9 7 . . . . 4 Naked Turns . | . . . . . . . . . . . . . . Heaviest Build 94 | 12 25 26 26 26 42 88 94 94 29 30 35 35 29 Greatest Support 43 | 26 26 26 26 20 43 42 40 40 40 40 40 40 31 Greatest Overweight (x) 9 | . . . . 8 2 5 2 2 . . 1 1 9 Average Overweight (x) . | . . . . 4 . 1 1 . . . . . . Largest Inventory Capacity 12 | 6 12 10 10 10 10 10 10 4 4 4 8 8 8 Average Capacity 7 | 4 9 10 10 10 10 8 7 4 4 4 5 8 7 Most Carried 10 | 1 5 5 10 10 10 10 10 4 4 4 5 8 8 Average Carried 5 | . 2 4 7 7 9 7 6 3 3 3 4 6 6 Final Capacity 10 | 6 10 10 10 10 10 10 4 4 4 4 8 8 4 Final Carried 10 | 1 4 5 10 10 10 10 4 4 4 4 5 5 4 Class Distribution -------------------- 46% | Mutant 32% | Bothacker-Mutant 11% | Scavenger-Mutant 9% | Botlord-Mutant Dominant Class ---------------- Mutant | -10/Materials Mutant | -10/Mines Mutant | -10/Exiles Mutant | -9/Mines Scavenger-Mutant | -8/Materials Mutant | -8/Garrison Mutant | -8/Materials Mutant | -8/Garrison Mutant | -7/Factory Bothacker-Mutant | -7/Garrison Bothacker-Mutant | -7/Factory Bothacker-Mutant | -7/Garrison Botlord-Mutant | -6/Factory Resources | -11 -10 -10 -10 -9 -8 -8 -8 -8 -7 -7 -7 -7 -6 ----------- Run | Scr Mat Min Exi Min Mat Gar Mat Gar Fac Gar Fac Gar Fac Matter Collected 2705 | 235 . 103 . 137 193 239 90 269 205 577 . 446 211 Remotely . | . . . . . . . . . . . . . . Salvage Created 3303 | . . 100 . 114 292 . 311 690 292 584 . 518 402 Parts 147 | . . 6 . 8 12 . 14 38 12 24 . 15 18 Haulers Intercepted 2 | . . . . . 1 . . . . . . . 1 Recyclers Shooed . | . . . . . . . . . . . . . . Parts Field Recycled . | . . . . . . . . . . . . . . Retrieved Matter . | . . . . . . . . . . . . . . Parts Self-Destructed . | . . . . . . . . . . . . . . Prevented . | . . . . . . . . . . . . . . Kills | -11 -10 -10 -10 -9 -8 -8 -8 -8 -7 -7 -7 -7 -6 ------- Run | Scr Mat Min Exi Min Mat Gar Mat Gar Fac Gar Fac Gar Fac Combat Hostiles Destroyed 71 | . . 2 . 4 6 . 5 15 9 14 . 11 5 Melee 25 | . . . . . . . 5 13 . . . 2 5 Guns 18 | . . 1 . 1 4 . . 2 . 10 . . . Cannons 12 | . . . . . . . . . . 3 . 9 . AOE 12 | . . . . 3 . . . . 9 . . . . Classes Destroyed 14 | . . 1 . 1 2 . 3 3 3 . . . 1 Worker 1 | . . . . . . . . . . . . . 1 Hauler 2 | . . . . . 1 . . . . . . . 1 Mechanic 1 | . . . . . . . 1 . . . . . . Operator 2 | . . . . . . . 1 . 1 . . . . Watcher 1 | . . . . . . . . . 1 . . . . Swarmer 11 | . . . . . . . 1 3 . 6 . 1 . Grunt 37 | . . 2 . 3 3 . 2 5 6 6 . 9 1 Brawler 4 | . . . . . . . . 1 1 1 . 1 . Duelist 3 | . . . . . . . . 2 . . . . 1 Protector 1 | . . . . . . . . . 1 . . . . Sentry 8 | . . . . . 3 . 2 2 . 1 . . . Hunter 3 | . . . . . . . . 2 . . . . 1 Programmer 3 | . . . . . . . . . 1 . . . 2 Assembled 1 | . . . . 1 . . . . . . . . . Best Kill Streak 5 | . . 2 . 3 3 . 2 4 5 3 . 2 3 Combat Bots Only 5 | . . 2 . 3 3 . 2 4 5 3 . 2 3 Max Kills in Single Turn 4 | . . 1 . 2 1 . 1 2 4 1 . 1 1 Gunslinging 1 | . . . . . . . . 1 . . . . . Exploded 4 | . . . . 2 . . . . 4 . . . . Melee 1 | . . . . . . . 1 1 . . . 1 1 Uniques/NPCs Destroyed . | . . . . . . . . . . . . . . Combat | -11 -10 -10 -10 -9 -8 -8 -8 -8 -7 -7 -7 -7 -6 -------- Run | Scr Mat Min Exi Min Mat Gar Mat Gar Fac Gar Fac Gar Fac Damage Taken 8641 | . . 102 . 543 337 694 972 1057 959 1515 . 1189 1273 Core 1571 | . . 11 . 99 69 78 127 90 51 317 . 292 437 Absorbed by Shields . | . . . . . . . . . . . . . . Core Remaining (%) 48 | 100 . . . 56 . . . 33 . . . 5 . Volleys Fired 235 | . . 9 . 11 25 . . 4 16 89 2 73 6 Largest 2 | . . 2 . 2 2 . . 2 2 1 1 1 1 Hottest 130 | . . 100 . 100 130 . . 110 72 80 40 80 40 Shots Fired 276 | . . 18 . 13 49 . . 8 21 88 2 71 6 Gun 148 | . . 18 . 11 49 . . 8 . 53 . 9 . Cannon 64 | . . . . . . . . . . 16 . 48 . Launcher 23 | . . . . 2 . . . . 21 . . . . Special 41 | . . . . . . . . . . 19 2 14 6 Kinetic 6 | . . . . . . . . . . 6 . . . Thermal 184 | . . 18 . 6 49 . . . . 63 . 48 . Explosive 23 | . . . . 2 . . . . 21 . . . . Electromagnetic 22 | . . . . 5 . . . 8 . . . 9 . Robot Hit Streak 19 | . . 5 . 7 17 . . 3 8 12 1 19 5 Robot Miss Streak 4 | . . 2 . 2 2 . . 2 1 4 1 2 1 Penetration Max . | . . . . . . . . . . . . . . Secondary Targets 2 | . . . . 1 . . . 1 . . . . . Max Gunslinging Chain 1 | . . . . 1 . . . 1 . . . . . Shots Hit Robots 261 | . . 14 . 11 39 1 11 24 15 59 1 60 26 Core Hits 126 | . . 4 . 10 14 . 6 16 23 27 . 18 8 Critical Hits 3 | . . . . . . . . 2 . . . 1 . Critical Kills 2 | . . . . . . . . 2 . . . . . Critical Parts Destroyed . | . . . . . . . . . . . . . . Melee Attacks 101 | . . . . . . 10 21 35 . . . 5 30 Impact . | . . . . . . . . . . . . . . Slashing 85 | . . . . . . 10 21 35 . . . 5 14 Piercing 16 | . . . . . . . . . . . . . 16 Sneak Attacks 6 | . . . . . . . 2 . . . . 1 3 Combat Hostiles 2 | . . . . . . . . . . . . 1 1 Follow-up Attacks 1 | . . . . . . . . . . . . . 1 Damage Inflicted 7212 | . . 158 . 283 570 45 768 1058 1054 1108 . 1324 844 Guns 1816 | . . 158 . 115 566 . . 85 . 801 . 91 . Cannons 1279 | . . . . . . . . . . 307 . 972 . Explosions 1211 | . . . . 166 . . . . 1045 . . . . Melee 2891 | . . . . . . 45 768 973 . . . 261 844 Ramming 15 | . . . . 2 4 . . . 9 . . . . Kinetic 27 | . . . . . . . . . . 27 . . . Thermal 2851 | . . 158 . 74 566 . . . . 1081 . 972 . Explosive 1211 | . . . . 166 . . . . 1045 . . . . Electromagnetic 217 | . . . . 41 . . . 85 . . . 91 . Impact . | . . . . . . . . . . . . . . Slashing 2558 | . . . . . . 45 768 973 . . . 261 511 Piercing 333 | . . . . . . . . . . . . . 333 Highest Corruption 9 | . . . . . . . 1 7 3 3 3 9 3 Average Corruption 4 | . . . . . . . 1 4 2 3 3 5 3 Corruption Purged . | . . . . . . . . . . . . . . Effects 113 | . . . . . . . . 19 2 30 10 51 1 Message Errors 25 | . . . . . . . . 4 . 8 2 10 1 Matter Fused 36 | . . . . . . . . 8 1 9 4 14 . Heat Flow Errors 13 | . . . . . . . . 3 . 3 1 6 . Energy Discharges 11 | . . . . . . . . 1 . 4 1 5 . Data Loss (minor) 17 | . . . . . . . . 3 1 4 2 7 . Data Loss (major) 1 | . . . . . . . . . . . . 1 . Targeting Errors 7 | . . . . . . . . . . 1 . 6 . Weapon Failures 3 | . . . . . . . . . . 1 . 2 . Overload Shots . | . . . . . . . . . . . . . . Overflow Damage 441 | . . . . . 1 5 277 33 5 . . 82 38 Projectiles 5 | . . . . . . . . . . . . 5 . Explosions 5 | . . . . . . . . . 5 . . . . Melee 431 | . . . . . 1 5 277 33 . . . 77 38 Knockbacks . | . . . . . . . . . . . . . . Impact . | . . . . . . . . . . . . . . Kinetic . | . . . . . . . . . . . . . . Secondary . | . . . . . . . . . . . . . . Self-Inflicted Damage 246 | . . . . 60 . . . . 186 . . . . Shots 7 | . . . . 2 . . . . 5 . . . . Rammed 4 | . . . . 1 1 . . . 1 . . . 1 Targets Rammed 5 | . . . . 1 1 . . . 2 . . . 1 Kicked 1 | . . . . . . . . . 1 . . . . Crushed . | . . . . . . . . . . . . . . Highest Temperature 406 | . . 406 . 41 17 8 . 180 8 238 145 265 1 Average Temperature 65 | . . 227 . 19 9 5 . 78 8 38 61 53 1 Received Heat Transfer 2128 | . . 60 . 90 144 153 247 288 204 333 . 549 60 Effects 4 | . . 4 . . . . . . . . . . . Shutdowns 1 | . . 1 . . . . . . . . . . . Matter Decay 1 | . . 1 . . . . . . . . . . . Damage (minor) 2 | . . 2 . . . . . . . . . . . Siege Activations . | . . . . . . . . . . . . . . Robots Corrupted . | . . . . . . . . . . . . . . Combat Hostiles . | . . . . . . . . . . . . . . Parts Fried 1 | . . . . . . . . 1 . . . . . Impact Corruptions 1 | . . . . . 1 . . . . . . . . Robots Melted 4 | . . 1 . . 2 . . . . 1 . . . Combat Hostiles 4 | . . 1 . . 2 . . . . 1 . . . Parts Melted 17 | . . . . 1 8 . . . . 5 . 3 . Heat Transferred 6073 | . . 481 . 222 1443 . . . . 2027 . 1900 . Parts Sabotaged . | . . . . . . . . . . . . . . Parts Stolen . | . . . . . . . . . . . . . . Parts Stripped . | . . . . . . . . . . . . . . Power Chain Reactions . | . . . . . . . . . . . . . . Missiles Intercepted . | . . . . . . . . . . . . . . Alert | -11 -10 -10 -10 -9 -8 -8 -8 -8 -7 -7 -7 -7 -6 ------- Run | Scr Mat Min Exi Min Mat Gar Mat Gar Fac Gar Fac Gar Fac Peak Influence 1606 | . 15 85 . 78 106 1161 1393 1606 999 959 517 587 305 Initial 855 | . . 5 . . . 68 565 855 842 649 503 221 305 Average 551 | . 1 33 . 14 29 950 827 1238 890 760 461 400 159 Maximum Alert Level 5 | . . . . . . 4 4 5 3 3 2 2 1 Low Security (%) 28 | 100 100 100 . 100 100 9 . . . . . . 53 Level 1 12 | . . . . . . 1 . . . . 26 48 46 Level 2 21 | . . . . . . 4 53 . . 41 73 51 . Level 3 25 | . . . . . . 39 27 39 100 58 . . . Level 4 11 | . . . . . . 44 19 54 . . . . . Level 5 . | . . . . . . . . 5 . . . . . High Security . | . . . . . . . . . . . . . . Max Security . | . . . . . . . . . . . . . . Squads Dispatched 19 | . . . . . 1 . 8 . 4 . 1 . 5 Investigation 3 | . . . . . . . 1 . . . . . 2 Extermination 4 | . . . . . . . . . . . 1 . 3 Reinforcement 4 | . . . . . 1 . 2 . 1 . . . . Assault 5 | . . . . . . . 4 . 1 . . . . Garrison 3 | . . . . . . . 1 . 2 . . . . Intercept . | . . . . . . . . . . . . . . Construction Impeded . | . . . . . . . . . . . . . . Haulers Reinforced . | . . . . . . . . . . . . . . Stealth | -11 -10 -10 -10 -9 -8 -8 -8 -8 -7 -7 -7 -7 -6 --------- Run | Scr Mat Min Exi Min Mat Gar Mat Gar Fac Gar Fac Gar Fac Distress Signals 9 | . . . . . 6 . 3 . . . . . . Communications Jammed 14 | . . . . . . . . . 6 8 . . . Distress Signals 14 | . . . . . . . . . 6 8 . . . Times Spotted 202 | . 1 4 . 12 14 6 48 32 14 27 . 30 14 Peak Tracking Total 9 | . 1 2 . 6 4 5 9 5 5 6 1 6 3 Tactical Retreats 24 | . . 1 . 1 1 . 2 13 . 1 . 5 . Traps | -11 -10 -10 -10 -9 -8 -8 -8 -8 -7 -7 -7 -7 -6 ------- Run | Scr Mat Min Exi Min Mat Gar Mat Gar Fac Gar Fac Gar Fac Traps Triggered 11 | . . . . . . 1 2 3 1 . . 2 2 Indirectly . | . . . . . . . . . . . . . . Trap Hack Attempts . | . . . . . . . . . . . . . . Triggered . | . . . . . . . . . . . . . . Disarmed . | . . . . . . . . . . . . . . Reprogrammed . | . . . . . . . . . . . . . . Reused . | . . . . . . . . . . . . . . Traps Extracted . | . . . . . . . . . . . . . . Installed . | . . . . . . . . . . . . . . Triggered . | . . . . . . . . . . . . . . Machines | -11 -10 -10 -10 -9 -8 -8 -8 -8 -7 -7 -7 -7 -6 ---------- Run | Scr Mat Min Exi Min Mat Gar Mat Gar Fac Gar Fac Gar Fac Machines Disabled 14 | . . . . . . 2 2 2 3 3 . 2 . Max in Single Turn 2 | . . . . . . 1 . 1 2 1 . 1 . Garrison Relay 9 | . . . . . . 2 . 2 . 3 . 2 . Machines Sabotaged . | . . . . . . . . . . . . . . Garrisons Compromised . | . . . . . . . . . . . . . . Overloaded Fab Kills . | . . . . . . . . . . . . . . Fab Network Shutdowns . | . . . . . . . . . . . . . . Hacking | -11 -10 -10 -10 -9 -8 -8 -8 -8 -7 -7 -7 -7 -6 --------- Run | Scr Mat Min Exi Min Mat Gar Mat Gar Fac Gar Fac Gar Fac Machines Accessed 15 | . 1 . 1 1 4 . 2 . 2 . 2 . 2 Terminals 8 | . 1 . . . 3 . 1 . 1 . 1 . 1 Fabricators 1 | . . . . . . . . . . . . . 1 Repair Stations . | . . . . . . . . . . . . . . Recycling Units . | . . . . . . . . . . . . . . Scanalyzers . | . . . . . . . . . . . . . . Garrison Access 4 | . . . . . 1 . 1 . 1 . 1 . . Total Hacks 28 | . 2 . 1 1 10 . 4 . 2 . 3 . 5 Successful 11 | . . . 1 1 3 . 2 . 1 . 2 . 1 Failed 17 | . 2 . . . 7 . 2 . 1 . 1 . 4 Catastrophic 4 | . 1 . . . 3 . . . . . . . . Database Lockouts . | . . . . . . . . . . . . . . Manual 8 | . . . 1 . 5 . . . 1 . 1 . . Terminals 17 | . 2 . . . 8 . 3 . 1 . 1 . 2 Fabricators 3 | . . . . . . . . . . . . . 3 Repair Stations . | . . . . . . . . . . . . . . Recycling Units . | . . . . . . . . . . . . . . Scanalyzers . | . . . . . . . . . . . . . . Garrison Access 6 | . . . . . 2 . 1 . 1 . 2 . . Terminal Hacks 6 | . . . 1 1 2 . 1 . . . 1 . . Record 2 | . . . . . 1 . 1 . . . . . . Prototype ID Bank 1 | . . . . . . . . . . . 1 . . Open Door 1 | . . . . 1 . . . . . . . . . Hauler Manifests 1 | . . . . . 1 . . . . . . . . EX-Prototype ID Bank 1 | . . . 1 . . . . . . . . . . Fabricator Hacks 1 | . . . . . . . . . . . . . 1 Build 1 | . . . . . . . . . . . . . 1 Repair Station Hacks . | . . . . . . . . . . . . . . Recycling Unit Hacks . | . . . . . . . . . . . . . . Scanalyzer . | . . . . . . . . . . . . . . Garrison Access Hacks 4 | . . . . . 1 . 1 . 1 . 1 . . Unlock Access 4 | . . . . . 1 . 1 . 1 . 1 . . Unauthorized Hacks . | . . . . . . . . . . . . . . Terminals . | . . . . . . . . . . . . . . Fabricators . | . . . . . . . . . . . . . . Repair Stations . | . . . . . . . . . . . . . . Recycling Units . | . . . . . . . . . . . . . . Scanalyzers . | . . . . . . . . . . . . . . Garrison Access . | . . . . . . . . . . . . . . Data Cores Recovered . | . . . . . . . . . . . . . . Used . | . . . . . . . . . . . . . . Hacking Detections 11 | . 1 . . . 4 . 1 . 1 . 2 . 2 Full Trace Events 3 | . . . . . . . 1 . . . . . 2 Feedback Events . | . . . . . . . . . . . . . . Feedback Blocked . | . . . . . . . . . . . . . . Robot Schematics Acquired . | . . . . . . . . . . . . . . Robots Built 2 | . . . . . . . . . . . . . 2 Matter 285 | . . . . . . . . . . . . . 285 Time 76 | . . . . . . . . . . . . . 76 Total Robot Build Rating 10 | . . . . . . . . . . . . . 10 Part Schematics Acquired . | . . . . . . . . . . . . . . Parts Built . | . . . . . . . . . . . . . . Matter . | . . . . . . . . . . . . . . Time . | . . . . . . . . . . . . . . Total Part Build Rating . | . . . . . . . . . . . . . . Parts Repaired . | . . . . . . . . . . . . . . Time . | . . . . . . . . . . . . . . Parts Recycled . | . . . . . . . . . . . . . . Recycled Matter . | . . . . . . . . . . . . . . Retrieved Matter . | . . . . . . . . . . . . . . Retrieved Components . | . . . . . . . . . . . . . . Parts Scanalyzed . | . . . . . . . . . . . . . . Part Schematics Acquired . | . . . . . . . . . . . . . . Parts Damaged . | . . . . . . . . . . . . . . Bothacking | -11 -10 -10 -10 -9 -8 -8 -8 -8 -7 -7 -7 -7 -6 ------------ Run | Scr Mat Min Exi Min Mat Gar Mat Gar Fac Gar Fac Gar Fac Used RIF Installer 4 | . . . . . . 1 . 1 . 1 . 1 . Signal Jammer 1 | . . . . . . . . 1 . . . . . Patrol Navigation 1 | . . . . . . . . . . . . 1 . Autooverride 1 | . . . . . . . . . . 1 . . . Robots Hacked 30 | . . . . . . . . . . 13 1 12 4 Non-combat 5 | . . . . . . . . . . 2 1 . 2 Combat 25 | . . . . . . . . . . 11 . 12 2 Autooverrided 4 | . . . . . . . . . . . . 3 1 Robot Hacks Applied 30 | . . . . . . . . . . 13 1 11 5 purge_threat 1 | . . . . . . . . . . . . . 1 block_reporting 1 | . . . . . . . . . . . . . 1 recall_investigation 1 | . . . . . . . . . . . . . 1 overload_power 1 | . . . . . . . . . . . . . 1 amplify_resonance 3 | . . . . . . . . . . . . 3 . overwrite_iff 9 | . . . . . . . . . . 3 . 6 . streamctrl_high 2 | . . . . . . . . . . . . 2 . formatsys_low 1 | . . . . . . . . . . . 1 . . formatsys_high 11 | . . . . . . . . . . 10 . . 1 Relay Couplers Released 38 | . . . . . . 8 . 9 . 13 . 8 . Machine Destruction 38 | . . . . . . 8 . 9 . 13 . 8 . Attached 28 | . . . . . . 3 . 7 1 11 . 4 2 Robots Rewired . | . . . . . . . . . . . . . . Allies Hacked . | . . . . . . . . . . . . . . Hacks Repelled . | . . . . . . . . . . . . . . Allies | -11 -10 -10 -10 -9 -8 -8 -8 -8 -7 -7 -7 -7 -6 -------- Run | Scr Mat Min Exi Min Mat Gar Mat Gar Fac Gar Fac Gar Fac Total Allies 30 | . . . . 3 . . . . . 13 1 9 4 Largest Group 6 | . . . . 3 . . . . . 6 4 5 2 Highest-Rated Group 110 | . . . . 40 . . . . . 110 73 102 82 Highest-Rated Ally 41 | . . . . 16 . . . . . 32 32 32 41 Total Orders 20 | . . . . . 2 7 . 1 . 7 . 3 . STAY 5 | . . . . . . . . . . 5 . . . FOLLOW 3 | . . . . . . . . . . 2 . 1 . TUNNEL 2 | . . . . . . . . . . . . 2 . EXPLORE 9 | . . . . . 2 6 . 1 . . . . . RETURN 1 | . . . . . . 1 . . . . . . . Ally Attacks 418 | . . . . 21 15 96 175 11 . 26 . 45 29 Total Damage 10223 | . . . . 195 . 3389 4207 213 . 375 . 661 1183 Kills 98 | . . . . 3 . 38 37 4 . 1 . 8 7 Allies Corrupted 1 | . . . . . . . . . . . . 1 . Allies Melted 1 | . . . . . . . . . . 1 . . . Intel | -11 -10 -10 -10 -9 -8 -8 -8 -8 -7 -7 -7 -7 -6 ------- Run | Scr Mat Min Exi Min Mat Gar Mat Gar Fac Gar Fac Gar Fac Robot Analysis Total . | . . . . . . . . . . . . . . Derelict Logs Recovered 2 | . . 1 . 1 . . . . . . . . . Drone Launches 65 | . . . . . 16 30 18 1 . . . . . Drone Recoveries 19 | . . . . . . 18 1 . . . . . . Exploration | -11 -10 -10 -10 -9 -8 -8 -8 -8 -7 -7 -7 -7 -6 ------------- Run | Scr Mat Min Exi Min Mat Gar Mat Gar Fac Gar Fac Gar Fac Turns Passed 11720 | 44 98 262 197 1015 1198 1244 841 1079 721 1839 542 1542 1098 Spaces Moved 6264 | 40 100 249 217 311 631 462 375 587 496 958 306 598 934 Core 221 | 5 . . . 193 . . . . . . . . 23 Treads 2535 | . . . . . 529 28 236 178 . 758 306 500 . Legs 2067 | . . . . 118 102 434 139 409 496 200 . 98 71 Wheels 601 | 35 100 249 217 . . . . . . . . . . Hover 840 | . . . . . . . . . . . . . 840 Flight . | . . . . . . . . . . . . . . Fastest Speed 50 | 50 90 90 90 150 152 120 150 120 120 125 160 120 50 Average Speed 142 | 85 90 90 90 286 162 156 180 137 129 153 172 158 68 Slowest Speed 500 | 100 90 90 90 450 180 270 210 210 130 160 180 180 500 Overloaded Moves . | . . . . . . . . . . . . . . Propulsion Burnouts . | . . . . . . . . . . . . . . Robots Hopped . | . . . . . . . . . . . . . . Cave-ins Triggered 1 | . . . . . . . . . . . . . 1 Exploration Rate (%) 43 | 3 19 42 61 36 64 74 48 72 14 80 7 54 28 Regions Visited 13 Branch Regions 3 Pre-discovered Areas 1 | . . 1 . . . . . . . . . . . Known Exits Taken 5 | . . . . 1 1 . 1 . 1 . 1 . . Unknown Exits Taken 4 | 1 1 1 1 . . . . . . . . . . Scrap Searched 2 | . . 1 . 1 . . . . . . . . . Spaces Dug 6 | . . . . . . . 4 2 . . . . . Terrain Destroyed 101 | . . . . 18 . . 4 2 77 . . . . Melee 6 | . . . . . . . 4 2 . . . . . Projectile . | . . . . . . . . . . . . . . AOE 95 | . . . . 18 . . . . 77 . . . . Terrain Rammed . | . . . . . . . . . . . . . . Walls Destroyed . | . . . . . . . . . . . . . . Machines Disabled . | . . . . . . . . . . . . . . Actions | -11 -10 -10 -10 -9 -8 -8 -8 -8 -7 -7 -7 -7 -6 --------- Run | Scr Mat Min Exi Min Mat Gar Mat Gar Fac Gar Fac Gar Fac Total 8643 | 46 108 268 219 416 759 963 500 775 555 1250 319 1119 1346 Wait 1669 | . . 9 . 76 61 445 81 106 16 131 8 409 327 Move 6246 | 39 99 248 216 310 630 460 374 585 495 956 305 596 933 Hop . | . . . . . . . . . . . . . . Pick Up 48 | 1 4 1 1 1 2 4 2 3 4 15 1 5 4 Fast Attach 119 | 6 2 1 . 6 13 19 7 16 5 21 2 9 12 Attach 33 | . . . 1 4 3 2 . 4 1 8 . 5 5 Detach 8 | . . . . . 3 . . . . 3 . 1 1 Swap 24 | . . . . 4 5 1 2 2 2 4 . 3 1 Drop 113 | . 3 . 1 3 16 17 13 6 9 22 1 9 13 Fire 235 | . . 9 . 11 25 . . 4 16 89 2 73 6 Melee 100 | . . . . . . 10 21 35 . . . 5 29 Ram 2 | . . . . 1 . . . . . . . . 1 Kick 2 | . . . . . . . . . 2 . . . . Crush 1 | . . . . . 1 . . . . . . . . Escape Stasis 42 | . . . . . . 5 . 14 5 . . 4 14 Rewire 1 | . . . . . . . . . . 1 . . . Trap . | . . . . . . . . . . . . . . Miscellaneous . | . . . . . . . . . . . . . . Route ------- -11/Scrapyard -10/Materials -10/Mines -10/Exiles -9/Mines -8/Materials (discovered 2 exits: *Fac / Gar) -8/Garrison (discovered 3 exits: *Mat x3) -8/Materials -8/Garrison (discovered 3 exits: *Fac x3) -7/Factory (discovered 2 exits: [*Low] / Gar) -7/Garrison (discovered 3 exits: *Fac x3) -7/Factory -7/Garrison (discovered 2 exits: *Fac x2) -6/Factory (discovered 1 exit: [*Fac]) History --------- Turn | Location | Event 30 | -11/Scrapyard | Discovered new exit (range 15) 45 | -11/Scrapyard | Entered Materials 49 | -10/Materials | Discovered new exit (range 15) 143 | -10/Materials | Entered Mines 160 | -10/Mines | Learned location of Zion (-7) 313 | -10/Mines | Build established: Mutant 401 | -10/Mines | Deemed a non-threat by the Exiles lab entrance 402 | -10/Mines | Discovered new exit (range 5) 405 | -10/Mines | Entered Exiles 428 | -10/Exiles | Met 8R-AWN 443 | -10/Exiles | Met EX-HEX 467 | -10/Exiles | Met EX-BIN 478 | -10/Exiles | Aligned with FarCom system 479 | -10/Exiles | Given EX-Vault access code 505 | -10/Exiles | Opened EX-Vault 514 | -10/Exiles | Found Army-in-a-Box 536 | -10/Exiles | Warned to stay clear of 0b10 Research branches 560 | -10/Exiles | Met EX-DEC 592 | -10/Exiles | Discovered new exit (range 14) 602 | -10/Exiles | Left Exiles lab with Army-in-a-Box 602 | -10/Exiles | Entered Mines 641 | -9/Mines | Met a Derelict bent on vengeance 643 | -9/Mines | Lost 4 parts (2n2w) 712 | -9/Mines | Identified exit to Materials 734 | -9/Mines | Assembled infested the area 739 | -9/Mines | Assisted by a Guerilla fighting off Assembled 826 | -9/Mines | Lost 6 parts (1p2n3w) 1210 | -9/Mines | Assisted by bots powering up and referring to "LRC-V3" 1462 | -9/Mines | Found the Drone Emporium 1481 | -9/Mines | Found Prototype Device 1617 | -9/Mines | Entered Materials 1617 | -8/Materials | Evolved 4 slots: Utility x4 1685 | -8/Materials | Identified Bomb Drone Bay 1883 | -8/Materials | Build established: Scavenger-Mutant 1892 | -8/Materials | Discovered new exit (range 81) 2814 | -8/Materials | Identified exit to Garrison 2815 | -8/Materials | Entered Garrison 2828 | -8/Garrison | Triggered checkpoint 2898 | -8/Garrison | Lost 3 parts (1n1u1w) 2926 | -8/Garrison | Triggered checkpoint 2928 | -8/Garrison | Garrison Relay disabled 2938 | -8/Garrison | Triggered checkpoint 2948 | -8/Garrison | Triggered checkpoint 2971 | -8/Garrison | Build established: Mutant 2980 | -8/Garrison | Discovered new exit (range 45) 2992 | -8/Garrison | Discovered new exit (range 59) 3002 | -8/Garrison | Triggered checkpoint 3026 | -8/Garrison | Triggered checkpoint 3042 | -8/Garrison | Triggered checkpoint 3054 | -8/Garrison | Triggered checkpoint 3066 | -8/Garrison | Discovered new exit (range 64) 3662 | -8/Garrison | Installed Relay Interface Framework 3746 | -8/Garrison | Garrison Relay disabled 4059 | -8/Garrison | Entered Materials 4459 | -8/Materials | First assault squad dispatched 4845 | -8/Materials | Garrison activated, responded to threat 4898 | -8/Materials | Identified exit to Garrison 4900 | -8/Materials | Entered Garrison 4944 | -8/Garrison | Triggered checkpoint 5074 | -8/Garrison | Garrison Relay disabled 5288 | -8/Garrison | Core integrity fell below 50% 5452 | -8/Garrison | Lost 3 parts (2u1w) 5525 | -8/Garrison | Discovered new exit (range 9) 5586 | -8/Garrison | Triggered checkpoint 5642 | -8/Garrison | Triggered checkpoint 5696 | -8/Garrison | Discovered new exit (range 15) 5723 | -8/Garrison | Expanded RIF knowledge: Signal Jamming 5832 | -8/Garrison | Discovered new exit (range 9) 5846 | -8/Garrison | Triggered checkpoint 5895 | -8/Garrison | Lost 4 parts (1p1n1u1w) 5922 | -8/Garrison | Garrison Relay disabled 5979 | -8/Garrison | Entered Factory 5979 | -7/Factory | Evolved 2 slots: Utility x2 6379 | -7/Factory | First assault squad dispatched 6643 | -7/Factory | Discovered new exit (range 14) 6692 | -7/Factory | Identified exit to Garrison 6700 | -7/Factory | Entered Garrison 6730 | -7/Garrison | Lost 4 parts (1p1u2w) 6974 | -7/Garrison | Triggered checkpoint 7047 | -7/Garrison | Lost 8 parts (1n4u3w) 7052 | -7/Garrison | Garrison Relay disabled 7340 | -7/Garrison | Build established: Bothacker-Mutant 7388 | -7/Garrison | Triggered checkpoint 7518 | -7/Garrison | Discovered new exit (range 15) 7574 | -7/Garrison | Triggered checkpoint 7983 | -7/Garrison | Garrison Relay disabled 8074 | -7/Garrison | Triggered checkpoint 8105 | -7/Garrison | Core integrity fell below 50% 8240 | -7/Garrison | Discovered new exit (range 10) 8286 | -7/Garrison | Triggered checkpoint 8330 | -7/Garrison | Garrison Relay disabled 8418 | -7/Garrison | Triggered checkpoint 8446 | -7/Garrison | Triggered checkpoint 8491 | -7/Garrison | Discovered new exit (range 11) 8520 | -7/Garrison | Expanded RIF knowledge: Autooverride 8539 | -7/Garrison | Entered Factory 8539 | -7/Factory | Accompanied by 3 allies 9079 | -7/Factory | Identified exit to Garrison 9081 | -7/Factory | Entered Garrison 9081 | -7/Garrison | Accompanied by 4 allies 9258 | -7/Garrison | Triggered checkpoint 9298 | -7/Garrison | Garrison Relay disabled 9792 | -7/Garrison | Triggered checkpoint 9858 | -7/Garrison | Discovered new exit (range 14) 9912 | -7/Garrison | Triggered checkpoint 9954 | -7/Garrison | Triggered checkpoint 10056 | -7/Garrison | Garrison Relay disabled 10398 | -7/Garrison | Triggered checkpoint 10453 | -7/Garrison | Core integrity fell below 20% 10500 | -7/Garrison | Lost 5 parts (1p1n1u2w) 10594 | -7/Garrison | Discovered new exit (range 15) 10617 | -7/Garrison | Expanded RIF knowledge: Watcher Feeds 10623 | -7/Garrison | Entered Factory 10623 | -6/Factory | Evolved 2 slots: Utility x2 10915 | -6/Factory | Build established: Botlord-Mutant 11226 | -6/Factory | P-60 Hacker assimilated allied Slayer 5a 11276 | -6/Factory | Lost 3 parts (1n2u) 11371 | -6/Factory | Discovered new exit (range 16) 11455 | -6/Factory | Fabricated H-66 Slayer (x2) 11699 | -6/Factory | Crushed by falling debris 11719 | -6/Factory | Core integrity fell below 50% 11721 | -6/Factory | Self-destructed Last Messages --------------- 11699_ System corrupted by crushing effect (+2). 11700_ U-05 Engineer lays Concrete. 11701_ X9L80OG/BPRF/QTQ7QUC 11701_ U-05 Engineer lays Concrete. 11702_ Slammed into S-27 Virus. 11702_ K-01 Serf collects debris. 11702_ U-05 Engineer lays Concrete. 11704_ R-10 Processor collects Spear. 11704_ U-05 Engineer builds a Wall. 11706_ K-01 Serf collects debris. 11707_ Relay Coupler [Duelist] destroyed. 11708_ U-05 Engineer builds a Door. 11709_ R-10 Processor collects Spear. 11709_ Destroyed VTOL Module. 11711_ K-01 Serf collects debris. 11712_ U-05 Engineer builds a Wall. 11715_ K-01 Serf collects debris. 11717_ U-05 Engineer lays Concrete. 11718_ K-01 Serf collects debris. 11719_ U-05 Engineer lays Concrete. Map ----- +----------------------------------------------------+ | ?????????????????????????????????????????????? | | ?????????????????????????????????????????????? | | ?????????????????????????????????????????????? | | ?????????????????????????????????????????????? | | ?????????????????????????????????????????????? | | ?????????????????????????????????????????????? | | ?????????????????????????????????????????????? | | ?????????????????????????????????????????????? | | ?????????????????????????????????????????????? | | ?????????????????????????????????????????????? | | ?????????????????????????????????????????????? | | ?????????????????????????????????????????????? | | ?????????????????????????????????????????????? | | ??????????????????####???????????????????????? | | ??????????????????+ ???????????????????????? | | ??????????????????# ???????????????????????? | | ?????????#+##+##### #??????????????????????? | | ?????????? #??????????????????????? | | ??????????gg #??????????????????????? | | ??????????g? #??????????????????????? | | ??????????g??? #??????????????????????? | | ??????????????? #??????????????????????? | | ????????????????# #??????????????????????? | | ??????????????### ###????????????????????? | | ??????????????# #????????????????????? | | ??????????????# @ %##########+########### | | ??????????????# | | ??????????????# | | ??????????????# | | ??????????????# | | ????##?######## | | ????# ### # # ] ###+######+##########? | | ????## ss #??????# ! #? | | ??###"""" %; R ##??????# """ #? | | ??# ; #???????# [ "Y" #? | | ??# #???????# #? | | ??# # #???????# w #? | | ??# u/ #???????# """ #? | | ??# # #???????# """"" #? | | ??# #???????# """"" #? | | ??# #???????# #? | | ??# #???????# #? | | ??# #???????# ??? | | ??# ! " #???????# ??? | | ??# " #???????###########???? | | ??# # #?????????????????????? | | ??#####"""""#### +?????????????????????? | | ??????######???# #?????????????????????? | | ???????????????# #?????????????????????? | | ???##??????????# #?????????????????????? | +----------------------------------------------------+ Best States ------------- Heat Dissipation 62 Energy Generation 18 Energy Capacity 300 Matter Stores 300 Matter Capacity 300 Sight Range 16 Terrain Scan Density 10 Additional Mass Support 9 Armor Coverage 750 Evasion (%) 53 Targeting Accuracy 8 Recoil Reduction 2 Relay Coupler Types 206 Relay Coupler Value 6 Item Schematics ----------------- None Robot Schematics ------------------ None Fabricated ------------ H-66 Slayer | x2 | -6/Factory | Preloaded Alien Tech Used ----------------- None Achievements -------------- None Challenges ------------ None Game ------ Seed DeepFluxField Manual? 0 Play Time 01:18:59 Cumulative 79.1 hours Start 2021.03.20 @ 13:56:17 End 2021.03.20 @ 15:32:53 Sessions 1 Manual Loads 0 Difficulty Rogue Special Mode None Game No. 213 Rogue 60 Adventurer 148 Explorer 5 Win Type - Total 1 Types 1/0/0/0/0/0/0/0/0 Lore% 53 Gallery% 61 Achievement% 48 Wizard Run 0 Options --------- ASCII 0 Keyboard 0 Movement Numpad Keybinds 0 Fullscreen 1 Font 18/CogNarrow Map View 76x50 Tactical HUD 1 Map Filters NONE Filters NONE Steam 1 RUN: 52ca80dd-6a0c-4734-928a-99404aeb07f1